bitfinex-derivatives/quotes_SOLF0:USTF0_20250207
["timestamp","ask_amount","ask_price","bid_price","bid_amount"]
[1738931115106,5.0507,197.92,197.88,7.07954359]
[1738931115509,7.07954359,197.94,197.88,7.07954359]
[1738931115810,7.07954359,197.94,197.89,5.0515]
[1738931116107,105.05,197.95,197.9,7.07954359]
[1738931116611,5.0503,197.94,197.89,5.0515]
[1738931117004,100.0,197.95,197.88,8.64454359]
[1738931117203,5.0505,197.93,197.88,8.64454359]
[1738931117412,100.0,197.95,197.88,8.64454359]
[1738931117604,105.05,197.95,197.9,5.0512]
[1738931117806,105.05,197.95,197.9,12.13074359]
[1738931119312,5.0506,197.93,197.9,7.07954359]
[1738931119712,5.0503,197.94,197.9,12.13074359]
[1738931120405,105.05,197.95,197.9,12.13074359]
[1738931121311,100.0,197.95,197.9,7.07954359]
[1738931122010,5.0508,197.92,197.88,13.69624359]
[1738931122717,5.0508,197.92,197.88,8.64454359]
[1738931122915,5.0508,197.92,197.89,5.0515]
[1738931123416,5.0508,197.92,197.9,7.07954359]
[1738931123715,5.0506,197.93,197.9,12.13074359]
[1738931126818,100.0,197.95,197.9,7.07954359]
[1738931127014,105.0502,197.95,197.91,5.0509]
[1738931127412,100.0,197.95,197.91,5.0888129]
[1738931127615,100.0,197.95,197.91,0.0379129]
[1738931127917,5.0507,197.93,197.91,0.0379129]
[1738931129216,5.0503,197.94,197.91,0.0379129]
[1738931129417,100.0,197.95,197.91,0.0379129]
[1738931130819,5.0504,197.94,197.91,0.0379129]
[1738931132322,5.0506,197.93,197.91,0.0379129]
[1738931132618,100.0,197.95,197.91,0.0379129]
[1738931132819,100.0,197.95,197.91,5.0888129]
[1738931133017,100.0,197.95,197.92,7.07954359]
[1738931133018,105.05,197.95,197.92,7.07954359]
[1738931133617,100.0,197.95,197.94,7.07954359]
[1738931134924,100.0,197.95,197.92,7.07954359]
[1738931136221,1.5532,198.03,197.91,0.0379129]
[1738931136222,7.07954359,198.05,197.94,7.07954359]
[1738931136421,7.07954359,198.09,198.02,7.07954359]
[1738931136623,7.07954359,198.11,198.04,7.07954359]
[1738931136824,5.0464,198.1,198.06,7.07954359]
[1738931137028,7.07954359,198.11,198.06,7.07954359]
[1738931137225,7.07954359,198.11,198.06,7.11318921]
[1738931137528,5.0464,198.09,198.06,0.03364562]
[1738931137723,7.07954359,198.11,198.06,0.03364562]
[1738931137923,7.07954359,198.09,198.06,0.03364562]
[1738931138827,5.0467,198.08,198.06,0.03364562]
[1738931139429,7.07954359,198.09,198.06,0.03364562]
[1738931140530,7.07954359,198.07,198.0,12.12804359]
[1738931140725,7.07954359,198.07,198.0,7.07954359]
[1738931140925,7.07954359,198.05,197.98,7.07954359]
[1738931141524,5.048,198.03,197.98,7.07954359]
[1738931141729,5.08347356,198.03,198.0,0.03572899]
[1738931142021,0.03547356,198.03,198.0,0.03572899]
[1738931142933,7.07954359,198.01,197.96,7.07954359]
[1738931143133,7.07954359,198.01,197.94,7.07954359]
[1738931143430,5.0492,197.99,197.94,7.07954359]
[1738931143832,5.0492,197.99,197.94,12.12974359]
[1738931144233,0.03525573,197.98,197.95,0.03560146]
[1738931146336,5.08455573,197.98,197.95,0.03560146]
[1738931148732,0.03525573,197.98,197.95,0.03560146]
[1738931152937,0.03525573,197.98,197.95,5.08560146]
[1738931153833,5.0495,197.97,197.95,0.03560146]
[1738931154136,0.03525573,197.98,197.95,0.03560146]
[1738931154537,5.08465573,197.98,197.95,0.03560146]
[1738931155734,0.03525573,197.98,197.95,0.03560146]
[1738931156040,5.0495,197.97,197.95,0.03560146]
[1738931161132,5.0497,197.96,197.95,0.03560146]
[1738931161839,0.03525573,197.98,197.95,0.03560146]
[1738931162047,5.08475573,197.98,197.95,0.03560146]
[1738931162339,0.03525573,197.98,197.95,0.03560146]
[1738931163842,5.0497,197.96,197.95,0.03560146]
[1738931165745,7.05280166,197.97,197.9,7.05280166]
[1738931165946,5.0505,197.94,197.9,7.05280166]
[1738931166339,7.05280166,197.95,197.9,7.05280166]
[1738931166540,5.0508,197.92,197.88,7.05280166]
[1738931166746,7.05280166,197.91,197.86,7.05280166]
[1738931166947,7.05280166,197.91,197.88,0.03552563]
[1738931167543,5.0515,197.89,197.88,0.03552563]
[1738931167745,0.03523697,197.92,197.88,7.08832729]
[1738931168246,5.08593697,197.92,197.88,7.08832729]
[1738931168446,0.03523697,197.92,197.9,7.05280166]
[1738931169347,0.03523697,197.92,197.91,5.051]
[1738931169748,0.03523697,197.92,197.9,7.05280166]
[1738931169948,0.03523697,197.92,197.9,12.10400166]
[1738931170846,0.03523697,197.92,197.91,5.051]
[1738931177946,0.03523697,197.92,197.9,7.05280166]
[1738931178143,0.03523697,197.92,197.91,5.051]
[1738931185253,0.03523697,197.92,197.9,12.10400166]
[1738931185648,5.0515,197.89,197.88,0.03552563]
[1738931185848,12.10430166,197.89,197.88,0.03552563]
[1738931187053,5.0525,197.86,197.82,7.00296973]
[1738931187254,12.10530166,197.86,197.82,7.00296973]
[1738931187751,9.20543191,197.85,197.82,7.00296973]
[1738931187951,9.20543191,197.85,197.8,5.0538]
[1738931188151,9.24170058,197.85,197.82,0.03423656]
[1738931188455,4.15273191,197.84,197.82,0.03423656]
[1738931188652,4.15273191,197.83,197.82,0.03423656]
[1738931189049,4.15273191,197.83,197.82,5.08743656]
[1738931190152,0.03626867,197.85,197.83,5.0529]
[1738931190551,4.11831901,197.84,197.83,5.0529]
[1738931191552,4.11831901,197.84,197.83,12.10570166]
[1738931193552,0.03626867,197.85,197.84,5.0528]
[1738931194152,4.15302001,197.85,197.84,5.0528]
[1738931205465,0.03626867,197.85,197.84,5.0528]
[1738931213172,4.16018748,197.85,197.84,5.0528]
[1738931220482,0.03626867,197.85,197.84,5.0528]
[1738931221687,4.1641192,197.85,197.84,5.0528]
[1738931224684,7.05280166,197.96,197.83,7.05280166]
[1738931224880,7.05280166,197.96,197.82,0.03423656]
[1738931224881,7.05280166,197.96,197.9,7.05280166]
[1738931225878,0.03414255,197.95,197.91,5.08768407]
[1738931226783,0.03414255,197.95,197.92,5.0507]
[1738931227380,5.08424255,197.95,197.92,5.0507]
[1738931228681,0.03414255,197.95,197.91,0.03668407]
[1738931228987,7.05280166,197.94,197.91,0.03668407]
[1738931229288,5.0505,197.93,197.91,0.03668407]
[1738931241792,0.03414255,197.95,197.91,0.03668407]
[1738931242092,0.03414255,197.95,197.92,5.0506]
[1738931242093,5.08414255,197.95,197.92,5.0506]
[1738931242392,5.0505,197.93,197.91,0.03668407]
[1738931242593,0.03414255,197.95,197.91,0.03668407]
[1738931243287,5.0507,197.92,197.91,0.03668407]
[1738931265711,7.05280166,197.92,197.82,7.05280166]
[1738931266007,7.05280166,197.88,197.8,14.05577139]
[1738931266310,7.05280166,197.86,197.8,14.05577139]
[1738931267016,4.21346186,197.85,197.81,0.03443289]
[1738931267414,7.05280166,197.84,197.81,0.03443289]
[1738931268012,4.17864876,197.83,197.81,0.03443289]
[1738931268313,11.23145042,197.82,197.81,0.03443289]
[1738931268614,16.28475042,197.82,197.81,0.03443289]
[1738931269013,4.17864876,197.82,197.81,0.03443289]
[1738931270016,16.28475042,197.82,197.81,0.03443289]
[1738931270711,9.23194876,197.82,197.81,0.03443289]
[1738931270910,4.17864876,197.82,197.81,0.03443289]
[1738931272515,9.23194876,197.82,197.81,0.03443289]
[1738931273013,4.17864876,197.82,197.81,0.03443289]
[1738931276015,4.17864876,197.82,197.81,5.08793289]
[1738931283417,0.0348131,197.85,197.83,5.0528]
[1738931284026,4.14059262,197.84,197.83,5.0528]
[1738931290024,4.14059262,197.84,197.81,0.03443289]
[1738931290326,7.05280166,197.82,197.81,0.03443289]
[1738931291725,12.10610166,197.82,197.81,0.03443289]
[1738931291930,16.24669428,197.82,197.81,0.03443289]
[1738931301248,11.19339428,197.82,197.81,0.03443289]
[1738931301440,4.14059262,197.82,197.81,0.03443289]
[1738931302445,16.24669428,197.82,197.81,0.03443289]
[1738931304646,11.19339428,197.82,197.74,7.05280166]
[1738931304840,5.0541,197.79,197.74,7.05280166]
[1738931305441,5.0548,197.76,197.74,7.05280166]
[1738931305742,11.19339428,197.78,197.72,7.05280166]
[1738931305943,4.17413587,197.77,197.73,0.03850219]
[1738931306444,9.2010472,197.76,197.73,0.03850219]
[1738931306849,4.1460472,197.76,197.73,0.03850219]
[1738931307046,5.0551,197.75,197.73,0.03850219]
[1738931307345,9.2011472,197.75,197.73,0.03850219]
[1738931307645,4.1460472,197.75,197.73,0.03850219]
[1738931307849,4.1460472,197.74,197.73,5.09410219]
[1738931310147,4.1460472,197.74,197.73,0.03850219]
[1738931311750,9.2013472,197.74,197.73,0.03850219]
[1738931312451,4.1460472,197.74,197.73,5.09410219]
[1738931331161,0.03354325,197.77,197.73,0.03850219]
[1738931331362,0.03354325,197.77,197.75,5.0549]
[1738931332162,4.11020452,197.76,197.75,5.0549]
[1738931335565,4.11020452,197.76,197.73,0.03850219]
[1738931335771,7.05280166,197.75,197.64,28.05061044]
[1738931336071,7.05280166,197.67,197.64,28.05061044]
[1738931336666,12.11010166,197.67,197.64,28.05061044]
[1738931336869,4.11020452,197.66,197.64,28.08808606]
[1738931337672,4.11020452,197.65,197.64,40.19848772]
[1738931338271,4.11020452,197.65,197.64,12.14787728]
[1738931338464,1.64030452,197.65,197.64,12.14787728]
[1738931338670,0.03640108,197.67,197.66,5.0574]
[1738931338871,7.05280166,197.77,197.66,7.05280166]
[1738931339072,7.05280166,197.79,197.73,7.05280166]
[1738931339469,7.05280166,197.79,197.71,7.05280166]
[1738931339773,7.05280166,197.77,197.71,7.05280166]
[1738931339978,7.05280166,197.75,197.73,0.0322772]
[1738931340771,5.0554,197.74,197.73,0.0322772]
[1738931340964,7.08700701,197.77,197.73,0.0322772]
[1738931341668,5.0551,197.75,197.73,0.0322772]
[1738931342168,7.08700701,197.77,197.73,0.0322772]
[1738931342371,5.0549,197.76,197.73,0.0322772]
[1738931343264,7.08700701,197.77,197.73,0.0322772]
[1738931343469,5.0551,197.75,197.73,0.0322772]
[1738931347778,7.08700701,197.77,197.73,0.0322772]
[1738931347979,5.0553,197.74,197.73,0.0322772]
[1738931351390,7.05280166,197.75,197.73,0.0322772]
[1738931351587,5.0551,197.75,197.73,0.0322772]
[1738931359191,5.0553,197.74,197.73,0.0322772]
[1738931364195,12.10800166,197.75,197.73,0.0322772]
[1738931366096,5.0549,197.76,197.73,5.0876772]
[1738931366688,0.03420535,197.77,197.73,7.08507886]
[1738931367899,0.03420535,197.77,197.76,5.0548]
[1738931373305,0.03420535,197.77,197.73,0.0322772]
[1738931373498,0.03420535,197.77,197.75,5.055]
[1738931375402,7.05280166,197.76,197.75,5.055]
[1738931376502,7.05280166,197.76,197.73,0.0322772]
[1738931377007,12.10780166,197.76,197.73,0.0322772]
[1738931378404,0.03420535,197.77,197.73,0.0322772]
[1738931379206,0.03420535,197.77,197.74,5.0551]
[1738931380604,7.05280166,197.76,197.74,5.0551]
[1738931381701,12.10760166,197.76,197.73,5.0877772]
[1738931382506,7.05280166,197.76,197.73,0.0322772]
[1738931382706,5.0552,197.75,197.73,0.0322772]
[1738931383108,7.05280166,197.76,197.73,0.0322772]
[1738931383309,12.10760166,197.76,197.73,5.0877772]
[1738931388311,12.10760166,197.76,197.73,0.0322772]
[1738931388613,12.10760166,197.76,197.74,5.0553]
[1738931390707,0.03420535,197.77,197.73,7.08507886]
[1738931390910,0.03420535,197.77,197.75,7.05280166]
[1738931391914,0.03420535,197.77,197.76,5.0548]
[1738931392709,0.03420535,197.77,197.74,5.0551]
[1738931392909,7.05280166,197.76,197.73,0.0322772]
[1738931393516,5.0552,197.75,197.73,0.0322772]
[1738931395111,5.0552,197.75,197.73,5.0878772]
[1738931397907,7.05280166,197.74,197.73,5.0878772]
[1738931400520,12.10760166,197.76,197.73,5.0878772]
[1738931403228,4.15465464,197.75,197.73,5.0878772]
[1738931403925,4.15465464,197.75,197.73,0.0322772]
[1738931404120,4.15465464,197.74,197.73,0.0322772]
[1738931404526,16.2627563,197.74,197.73,0.0322772]
[1738931405726,11.2074563,197.74,197.73,0.0322772]
[1738931409333,4.15465464,197.74,197.73,0.0322772]
[1738931409534,9.20995464,197.74,197.73,0.0322772]
[1738931411731,4.15465464,197.74,197.73,0.0322772]
[1738931412233,11.2074563,197.74,197.73,0.0322772]
[1738931412729,16.2627563,197.74,197.73,0.0322772]
[1738931413132,632.3674644,198.04,197.74,30.4]
[1738931413331,450.46793822,198.04,197.99,7.05280166]
[1738931413528,444.46793822,198.04,198.03,12.10070166]
[1738931414126,404.41003822,198.04,198.03,12.10070166]
[1738931414332,389.81743822,198.04,198.03,12.10070166]
[1738931414634,374.8016197,198.04,198.03,16.04300537]
[1738931414831,0.03866621,198.05,198.03,16.04300537]
[1738931415036,1.02,198.16,198.03,10.99510537]
[1738931415334,1.02,198.16,198.08,10.99510537]
[1738931415635,1.02,198.16,198.1,5.0461]
[1738931415836,1.02,198.16,198.08,10.99510537]
[1738931416039,0.03817878,198.14,198.1,0.03324764]
[1738931417329,0.03817878,198.14,198.11,72.86091172]
[1738931417529,0.03817878,198.14,198.12,5.0455]
[1738931418133,7.878e-05,198.14,198.12,5.0455]
[1738931418437,7.878e-05,198.14,198.13,22.24773422]
[1738931418735,10.99510537,198.3,198.13,84.11354057]
[1738931419036,98.24749027,198.32,198.13,95.10864594]
[1738931419037,10.99510537,198.27,198.13,95.10864594]
[1738931419238,10.99510537,198.24,198.14,22.24773422]
[1738931419441,10.99510537,198.21,198.14,22.24773422]
[1738931419635,5.0423,198.26,198.14,22.24773422]
[1738931419830,0.03874511,198.19,198.16,0.03339903]
[1738931420036,10.99510537,198.22,198.15,12.5748063]
[1738931420237,0.03466669,198.19,198.16,0.03498432]
[1738931420536,0.01466669,198.19,198.16,12.60979062]
[1738931420738,0.01466669,198.19,198.17,5.0443]
[1738931421135,0.01466669,198.19,198.18,12.5748063]
[1738931421340,10.99510537,198.25,198.18,12.5748063]
[1738931421935,10.99510537,198.25,198.18,74.44061265]
[1738931422445,0.03356201,198.23,198.18,74.44061265]
[1738931422639,10.99510537,198.26,198.19,12.5748063]
[1738931422944,0.03356201,198.22,198.19,12.6092684]
[1738931423144,0.03356201,198.22,198.19,113.67452058]
[1738931423743,10.99510537,198.26,198.2,12.5748063]
[1738931424234,5.0431,198.22,198.21,12.5748063]
[1738931424635,10.99510537,198.23,198.21,12.5748063]
[1738931424842,10.99510537,198.26,198.21,12.5748063]
[1738931425038,10.99510537,198.26,198.22,4.83646396]
[1738931425338,10.99510537,198.26,198.22,4.8687162]
[1738931425737,10.99510537,198.26,198.23,4.83646396]
[1738931426544,10.99510537,198.26,198.24,4.83646396]
[1738931426739,5.0421,198.27,198.24,4.83646396]
[1738931427038,5.0421,198.27,198.25,4.83646396]
[1738931427241,5.0421,198.26,198.25,4.83646396]
[1738931427942,16.03720537,198.26,198.25,4.83646396]
[1738931428134,5.0428,198.23,198.22,0.03225224]
[1738931428335,10.99510537,198.23,198.13,1.5748]
[1738931428646,0.03225224,198.24,198.18,7.38801476]
[1738931429443,0.03225224,198.24,198.19,0.03593927]
[1738931430249,5.224e-05,198.24,198.21,10.99510537]
[1738931430645,5.224e-05,198.24,198.23,5.0428]
[1738931431446,5.0395,198.37,198.32,5.0403]
[1738931431750,10.99510537,198.38,198.26,10.99510537]
[1738931432546,10.99510537,198.38,198.3,0.03398683]
[1738931433149,10.99510537,198.38,198.32,5.0404]
[1738931433750,10.52033213,198.38,198.32,5.0404]
[1738931433955,10.99510537,198.38,198.32,5.0404]
[1738931434251,5.0396,198.36,198.31,5.0408]
[1738931434553,16.03440537,198.38,198.32,5.0405]
[1738931434850,10.99510537,198.38,198.32,5.0405]
[1738931435351,10.99510537,198.38,198.3,0.03398683]
[1738931435552,5.0401,198.34,198.3,0.03398683]
[1738931435747,18.3179,198.49,198.3,0.03398683]
[1738931435951,10.99510537,198.36,198.24,202.91791717]
[1738931436445,10.99510537,198.36,198.28,0.03360786]
[1738931436851,5.0401,198.34,198.29,5.0413]
[1738931438757,5.0407,198.32,198.28,0.03360786]
[1738931438951,10.99510537,198.35,198.28,0.03360786]
[1738931439255,10.99510537,198.35,198.24,194.488]
[1738931439452,10.99510537,198.35,198.3,0.03628938]
[1738931440760,5.041,198.31,198.3,0.03628938]
[1738931440960,10.99510537,198.35,198.24,7.08196254]
[1738931441258,5.0416,198.29,198.24,12.12446254]
[1738931441459,5.0416,198.29,198.24,7.08196254]
[1738931441757,5.0416,198.29,198.25,4.43234177]
[1738931441955,5.07557838,198.29,198.25,4.46798319]
[1738931442460,5.07557838,198.29,198.25,9.51008319]
[1738931442661,5.0418,198.27,198.25,4.46798319]
[1738931442859,5.0418,198.27,198.26,4.43234177]
[1738931443462,5.0418,198.27,198.25,0.03564142]
[1738931443758,5.0421,198.26,198.25,0.03564142]
[1738931447855,5.0427,198.24,198.2,5.0434]
[1738931448563,5.0427,198.24,198.21,4.3517961]
[1738931449065,5.07806274,198.24,198.21,4.385035]
[1738931449264,5.0429,198.23,198.21,0.0332389]
[1738931449566,0.03536274,198.24,198.21,0.0332389]
[1738931450455,5.0431,198.22,198.21,0.0332389]
[1738931455275,5.0431,198.22,198.21,4.28445855]
[1738931460075,5.0429,198.23,198.21,4.28445855]
[1738931460378,5.0429,198.23,198.22,4.25121965]
[1738931461374,12.07880845,198.23,198.22,4.25121965]
[1738931462578,5.0431,198.22,198.21,0.0332389]
[1738931463680,17.98490626,198.22,198.21,0.0332389]
[1738931465879,12.94180626,198.22,198.21,0.0332389]
[1738931466984,17.98490626,198.22,198.21,0.0332389]
[1738931472085,12.94180626,198.22,198.21,0.0332389]
[1738931472789,12.94180626,198.22,198.21,5.0765389]
[1738931473391,12.94180626,198.22,198.21,0.0332389]
[1738931476489,17.98490626,198.22,198.21,0.0332389]
[1738931477290,12.94180626,198.22,198.21,0.0332389]
[1738931478386,12.94180626,198.22,198.21,5.0765389]
[1738931480488,0.03536274,198.24,198.21,0.0332389]
[1738931480790,0.03536274,198.24,198.23,12.07870845]
[1738931481991,12.93678367,198.29,198.28,5.0416]
[1738931482192,12.93678367,198.29,198.28,12.07750845]
[1738931484486,12.93678367,198.29,198.28,7.03590845]
[1738931484690,12.93678367,198.29,198.27,0.03743094]
[1738931485187,12.93678367,198.29,198.28,5.0416]
[1738931486084,12.93678367,198.29,198.28,12.07750845]
[1738931489596,0.03656806,198.3,198.29,5.0413]
[1738931494296,12.93353846,198.34,198.33,5.0403]
[1738931505410,12.93353846,198.34,198.32,7.0740917]
[1738931505805,17.97363846,198.34,198.32,7.0740917]
[1738931506007,12.93353846,198.34,198.32,7.0740917]
[1738931506206,12.93353846,198.34,198.33,5.0403]
[1738931508008,12.93353846,198.34,198.32,12.1145917]
[1738931508210,12.93353846,198.34,198.32,0.03818325]
[1738931509209,5.0403,198.33,198.32,0.03818325]
[1738931519727,12.93353846,198.34,198.32,12.1143917]
[1738931519925,12.93353846,198.34,198.32,7.0740917]
[1738931521030,12.93353846,198.34,198.32,12.1143917]
[1738931521331,12.93353846,198.34,198.32,0.03818325]
[1738931521631,5.0403,198.33,198.32,0.03818325]
[1738931523932,12.93353846,198.34,198.32,0.03818325]
[1738931524130,17.97363846,198.34,198.32,0.03818325]
[1738931524733,12.93353846,198.34,198.32,0.03818325]
[1738931524930,12.93353846,198.34,198.32,7.0740917]
[1738931525730,12.93353846,198.34,198.33,5.0403]
[1738931526329,12.93353846,198.34,198.32,0.03818325]
[1738931526534,19.96944691,198.34,198.32,0.03818325]
[1738931527130,25.00944691,198.34,198.32,0.03818325]
[1738931527932,19.96944691,198.34,198.26,7.03590845]
[1738931528134,7.03590845,198.32,198.26,7.03590845]
[1738931528631,5.0408,198.31,198.26,7.03590845]
[1738931529134,0.03391169,198.3,198.28,7.03590845]
[1738931530737,0.03391169,198.3,198.29,5.0411]
[1738931532535,0.03391169,198.3,198.27,0.03433074]
[1738931532735,0.03391169,198.3,198.27,5.07613074]
[1738931533239,7.06982014,198.3,198.27,0.03433074]
[1738931534843,5.0416,198.28,198.27,0.03433074]
[1738931536144,12.07750845,198.28,198.27,0.03433074]
[1738931536844,5.0425,198.25,198.22,12.07900845]
[1738931537145,5.0425,198.25,198.22,7.03590845]
[1738931537945,5.0752065,198.25,198.22,7.06926701]
[1738931538241,5.0426,198.24,198.22,0.03335856]
[1738931538642,0.0327065,198.25,198.22,0.03335856]
[1738931538643,5.0428,198.23,198.22,0.03335856]
[1738931542543,5.0439,198.19,198.16,12.08030845]
[1738931542850,7.03590845,198.24,198.16,12.08030845]
[1738931542851,7.03590845,198.21,198.16,12.08030845]
[1738931543347,5.0439,198.19,198.16,7.03590845]
[1738931543743,5.08116459,198.19,198.16,7.06961414]
[1738931544843,0.03726459,198.19,198.16,7.06961414]
[1738931546151,0.03726459,198.19,198.18,7.03590845]
[1738931546546,0.03726459,198.19,198.18,12.08000845]
[1738931550356,0.03726459,198.19,198.16,7.06961414]
[1738931550653,0.03726459,198.19,198.16,0.03370569]
[1738931551555,5.0441,198.18,198.16,0.03370569]
[1738931551857,0.03726459,198.19,198.16,0.03370569]
[1738931552446,5.0444,198.17,198.16,0.03370569]
[1738931555356,0.03726459,198.19,198.16,0.03370569]
[1738931555654,0.03726459,198.19,198.18,12.08000845]
[1738931556654,0.03726459,198.19,198.17,5.0444]
[1738931557060,0.03726459,198.19,198.18,7.03590845]
[1738931557457,0.03726459,198.19,198.18,12.08000845]
[1738931558059,6.459e-05,198.19,198.18,12.08000845]
[1738931566769,4.786756,198.22,198.18,7.03590845]
[1738931567078,12.4992849,198.29,198.21,7.03590845]
[1738931567373,12.4992849,198.29,198.28,7.03590845]
[1738931567568,12.4992849,198.29,198.28,12.07750845]
[1738931567873,12.4992849,198.29,198.26,7.03590845]
[1738931568065,12.4992849,198.29,198.27,0.03579147]
[1738931569775,12.4992849,198.29,198.28,5.0416]
[1738931569972,12.4992849,198.29,198.28,12.07750845]
[1738931570274,0.03417565,198.3,198.28,7.03590845]
[1738931570475,0.03417565,198.3,198.29,5.0413]
[1738931572274,12.93353846,198.34,198.31,5.0407]
[1738931573371,12.96797077,198.34,198.31,5.0407]
[1738931576178,12.96797077,198.34,198.3,7.03590845]
[1738931576377,12.96797077,198.34,198.32,5.0405]
[1738931576979,7.03590845,198.42,198.35,5.0398]
[1738931577177,7.03590845,198.42,198.35,7.03590845]
[1738931577579,5.0385,198.41,198.37,5.0393]
[1738931577873,7.03590845,198.42,198.35,7.03590845]
[1738931578074,12.76123411,198.41,198.38,5.0388]
[1738931578274,12.76123411,198.41,198.37,0.03426805]
[1738931579479,12.76123411,198.41,198.38,5.039]
[1738931579674,12.76123411,198.41,198.37,0.03426805]
[1738931580079,12.76123411,198.41,198.39,5.0386]
[1738931580377,12.76123411,198.41,198.37,0.03426805]
[1738931580878,12.76123411,198.41,198.39,5.0386]
[1738931581479,12.76123411,198.41,198.38,5.039]
[1738931582772,12.76123411,198.41,198.39,5.0387]
[1738931583384,12.76123411,198.41,198.4,5.0385]
[1738931584385,12.76123411,198.41,198.38,5.039]
[1738931587280,12.76123411,198.41,198.37,7.0701765]
[1738931587989,12.76123411,198.41,198.38,5.0388]
[1738931588487,12.76123411,198.41,198.37,0.03426805]
[1738931588688,7.03590845,198.4,198.37,0.03426805]
[1738931588892,12.07490845,198.38,198.37,0.03426805]
[1738931591889,7.03590845,198.38,198.3,5.0411]
[1738931592091,5.0402,198.34,198.3,5.0411]
[1738931592289,12.7639591,198.35,198.3,5.0411]
[1738931592492,12.7639591,198.35,198.29,7.03590845]
[1738931592986,5.0405,198.33,198.29,12.07700845]
[1738931593188,5.0405,198.33,198.3,0.03455896]
[1738931593384,0.03426805,198.34,198.3,0.03455896]
[1738931593583,0.03426805,198.34,198.31,7.03590845]
[1738931594192,0.03426805,198.34,198.32,5.0403]
[1738931596588,0.03426805,198.34,198.31,7.03590845]
[1738931596792,0.03426805,198.34,198.33,5.0403]
[1738931598395,0.03426805,198.34,198.31,7.03590845]
[1738931598594,0.03426805,198.34,198.31,12.07650845]
[1738931599195,5.07436805,198.34,198.31,12.07650845]
[1738931599395,0.03426805,198.34,198.3,5.07555896]
[1738931599593,0.03426805,198.34,198.3,0.03455896]
[1738931599791,5.0403,198.33,198.3,0.03455896]
[1738931600491,5.0403,198.33,198.3,5.07555896]
[1738931601189,0.03426805,198.34,198.3,0.03455896]
[1738931601593,5.0408,198.31,198.3,0.03455896]
[1738931602198,7.03590845,198.32,198.25,12.07810845]
[1738931602394,5.0418,198.28,198.25,7.03590845]
[1738931603098,5.0418,198.28,198.27,7.03590845]
[1738931603299,5.0414,198.29,198.27,7.03590845]
[1738931603497,0.03495692,198.29,198.27,7.03590845]
[1738931604295,0.03495692,198.29,198.27,12.07770845]
[1738931609606,5.07635692,198.29,198.27,7.03590845]
[1738931610407,0.03495692,198.29,198.27,7.03590845]
[1738931610602,0.03495692,198.29,198.27,12.07770845]
[1738931614806,0.03495692,198.29,198.28,5.0416]
[1738931615808,0.03495692,198.29,198.27,7.03590845]
[1738931616809,0.03495692,198.29,198.27,12.07770845]
[1738931617004,5.0418,198.27,198.26,0.03848673]
[1738931618310,0.03495692,198.29,198.26,0.03848673]
[1738931618811,5.07645692,198.29,198.26,5.08038673]
[1738931622306,5.07645692,198.29,198.26,0.03848673]
[1738931622511,5.07645692,198.29,198.27,12.07770845]
[1738931622911,0.03495692,198.29,198.27,12.07770845]
[1738931624710,0.03495692,198.29,198.27,7.03590845]
[1738931625018,0.03495692,198.29,198.26,0.03848673]
[1738931625612,5.0418,198.27,198.26,0.03848673]
[1738931648529,5.0417,198.28,198.26,0.03848673]
[1738931650226,5.0418,198.27,198.26,0.03848673]
[1738931650922,0.03495692,198.29,198.26,0.03848673]
[1738931651122,5.0416,198.28,198.26,0.03848673]
[1738931651417,0.03495692,198.29,198.26,0.03848673]
[1738931652228,0.03495692,198.29,198.27,12.07760845]
[1738931652427,0.03495692,198.29,198.27,5.0417]
[1738931652629,0.03495692,198.29,198.27,12.07760845]
[1738931655127,5.07635692,198.29,198.27,7.03590845]
[1738931655430,5.07635692,198.29,198.26,5.08048673]
[1738931657432,5.0416,198.28,198.26,0.03848673]
[1738931658342,0.03495692,198.29,198.27,12.07750845]
[1738931660141,0.03495692,198.29,198.28,5.0416]
[1738931662335,90.72503231,198.38,198.27,7.03590845]
[1738931662540,90.72503231,198.38,198.32,7.03590845]
[1738931662541,5.04,198.35,198.32,7.03590845]
[1738931663139,83.68912386,198.38,198.34,7.03590845]
[1738931663349,5.0393,198.37,198.34,7.03590845]
[1738931663548,5.0393,198.37,198.34,7.07272875]
[1738931663742,5.0396,198.36,198.34,7.07272875]
[1738931664047,7.06799851,198.38,198.34,0.0368203]
[1738931664443,5.0398,198.35,198.34,0.0368203]
[1738931665844,0.03209006,198.38,198.34,12.11272875]
[1738931666645,0.03209006,198.38,198.34,0.0368203]
[1738931667250,5.0395,198.37,198.34,0.0368203]
[1738931668051,0.03209006,198.38,198.34,0.0368203]
[1738931668348,7.06799851,198.38,198.34,0.0368203]
[1738931668744,5.0398,198.35,198.34,0.0368203]
[1738931691060,5.0398,198.35,198.34,2.03e-05]
[1738931699571,88.72892386,198.35,198.34,2.03e-05]
[1738931700476,83.68912386,198.35,198.34,2.03e-05]
[1738931701665,5.0393,198.37,198.34,2.03e-05]